bitfinex/quotes_BTCUSD_20230901
["timestamp","ask_amount","ask_price","bid_price","bid_amount"]
[1693541842721,1.40873017,26112.0,26111.0,0.003]
[1693541849063,1.62160788,26112.0,26111.0,0.003]
[1693541849267,1.62154788,26112.0,26111.0,0.003]
[1693541849471,1.56719634,26112.0,26111.0,0.003]
[1693541849627,1.36932856,26112.0,26111.0,0.003]
[1693541849823,1.55314788,26112.0,26111.0,0.003]
[1693541850532,1.36932856,26112.0,26111.0,0.003]
[1693541850831,1.55314788,26112.0,26111.0,0.003]
[1693541851766,1.75802481,26112.0,26111.0,0.003]
[1693541851980,1.55314788,26112.0,26111.0,0.003]
[1693541852171,1.62178788,26112.0,26111.0,0.003]
[1693541852519,1.55314788,26112.0,26111.0,0.003]
[1693541852956,1.781563,26112.0,26111.0,0.003]
[1693541853163,1.47954368,26112.0,26111.0,0.003]
[1693541853887,1.663363,26112.0,26111.0,0.003]
[1693541854494,1.47954368,26112.0,26111.0,0.003]
[1693541854701,1.31708498,26112.0,26111.0,0.003]
[1693541855712,1.17923444,26112.0,26111.0,0.003]
[1693541856943,1.24649869,26112.0,26111.0,0.003]
[1693541857373,1.24649869,26112.0,26111.0,0.69567]
[1693541857821,1.47627284,26112.0,26111.0,0.69567]
[1693541858033,0.95081932,26112.0,26111.0,0.69567]
[1693541858229,1.37757177,26112.0,26111.0,0.003]
[1693541858463,1.49148874,26112.0,26111.0,0.003]
[1693541868224,1.26171459,26112.0,26111.0,0.003]
[1693541873855,1.09927294,26112.0,26111.0,0.003]
[1693541892014,0.83496214,26112.0,26111.0,0.003]
[1693541892190,1.18255269,26112.0,26111.0,0.193]
[1693541892396,1.40028745,26112.0,26111.0,0.193]
[1693541893338,1.18255269,26112.0,26111.0,0.193]
[1693541893880,2.14275415,26112.0,26111.0,0.193]
[1693541894081,2.38586138,26112.0,26111.0,0.193]
[1693541894575,2.33414138,26112.0,26111.0,0.193]
[1693541894729,2.33258138,26112.0,26111.0,0.193]
[1693541894934,2.33282138,26112.0,26111.0,0.193]
[1693541895134,2.33528138,26112.0,26111.0,0.193]
[1693541895330,2.33312138,26112.0,26111.0,0.193]
[1693541895497,2.33294138,26112.0,26111.0,0.193]
[1693541895696,2.33276138,26112.0,26111.0,0.193]
[1693541895893,2.33234138,26112.0,26111.0,0.193]
[1693541896099,2.08905415,26112.0,26111.0,0.193]
[1693541896316,2.02455415,26112.0,26111.0,0.193]
[1693541896777,2.30451765,26112.0,26111.0,0.193]
[1693541897534,2.02455415,26112.0,26111.0,0.193]
[1693541897760,2.24322546,26112.0,26111.0,0.193]
[1693541899949,3.76645693,26112.0,26111.0,0.193]
[1693541900205,3.65142828,26112.0,26111.0,0.193]
[1693541900381,3.64704828,26112.0,26111.0,0.193]
[1693541900614,3.64368828,26112.0,26111.0,0.193]
[1693541900788,3.64134828,26112.0,26111.0,0.193]
[1693541900933,3.63954828,26112.0,26111.0,0.193]
[1693541901133,3.64038828,26112.0,26111.0,0.193]
[1693541901385,3.64038828,26112.0,26111.0,0.192]
[1693541901386,3.62684828,26112.0,26111.0,0.192]
[1693541901581,3.61500828,26112.0,26111.0,0.19]
[1693541901794,3.61500828,26112.0,26111.0,0.196]
[1693541901795,3.68496828,26112.0,26111.0,0.196]
[1693541901987,3.64806828,26112.0,26111.0,0.193]
[1693541902146,3.64680828,26112.0,26111.0,0.193]
[1693541902348,3.64704828,26112.0,26111.0,0.193]
[1693541902673,3.68262828,26112.0,26111.0,0.195]
[1693541902871,3.68268828,26112.0,26111.0,0.195]
[1693541903080,3.68256828,26112.0,26111.0,0.195]
[1693541903305,3.68220828,26112.0,26111.0,0.195]
[1693541903506,3.95809975,26112.0,26111.0,0.195]
[1693541903727,3.95797975,26112.0,26111.0,0.195]
[1693541903886,3.95773975,26112.0,26111.0,0.195]
[1693541904087,3.95785975,26112.0,26111.0,0.195]
[1693541904285,3.80632454,26112.0,26111.0,0.195]
[1693541904530,3.80608454,26112.0,26111.0,0.195]
[1693541904736,3.80584454,26112.0,26111.0,0.195]
[1693541904934,3.80572454,26112.0,26111.0,0.195]
[1693541905130,3.80566454,26112.0,26111.0,0.195]
[1693541905314,3.80602454,26112.0,26111.0,0.195]
[1693541905486,3.80596454,26112.0,26111.0,0.195]
[1693541905695,3.7149736,26112.0,26111.0,0.195]
[1693541905901,3.7163536,26112.0,26111.0,0.195]
[1693541906097,3.7142536,26112.0,26111.0,0.195]
[1693541906364,3.7141936,26112.0,26111.0,0.195]
[1693541906565,3.7140736,26112.0,26111.0,0.195]
[1693541906774,3.7139536,26112.0,26111.0,0.195]
[1693541906978,3.7132336,26112.0,26111.0,0.195]
[1693541907181,3.7127536,26112.0,26111.0,0.195]
[1693541907403,3.7039336,26112.0,26111.0,0.195]
[1693541907599,3.97378325,26112.0,26111.0,0.195]
[1693541907817,3.80328272,26112.0,26111.0,0.195]
[1693541908101,3.80310272,26112.0,26111.0,0.195]
[1693541908308,3.80304272,26112.0,26111.0,0.195]
[1693541908682,3.80322272,26112.0,26111.0,0.195]
[1693541908881,3.80340272,26112.0,26111.0,0.195]
[1693541909067,3.80334272,26112.0,26111.0,0.195]
[1693541909268,3.80328272,26112.0,26111.0,0.195]
[1693541909614,3.80358272,26112.0,26111.0,0.195]
[1693541909769,3.80304272,26112.0,26111.0,0.195]
[1693541909974,3.80298272,26112.0,26111.0,0.195]
[1693541910176,3.80292272,26112.0,26111.0,0.195]
[1693541910378,3.80286272,26112.0,26111.0,0.195]
[1693541910575,3.80250272,26112.0,26111.0,0.195]
[1693541910796,3.80238272,26112.0,26111.0,0.195]
[1693541911009,3.80232272,26112.0,26111.0,0.195]
[1693541911322,3.80220272,26112.0,26111.0,0.195]
[1693541911610,3.82458272,26112.0,26111.0,0.195]
[1693541911768,3.82704272,26112.0,26111.0,0.195]
[1693541911995,3.82686272,26112.0,26111.0,0.195]
[1693541912204,3.82572272,26112.0,26111.0,0.195]
[1693541912403,3.88374272,26112.0,26111.0,0.195]
[1693541912628,3.88026272,26112.0,26111.0,0.195]
[1693541912967,3.87978272,26112.0,26111.0,0.195]
[1693541913104,3.87990272,26112.0,26111.0,0.195]
[1693541913313,3.87462272,26112.0,26111.0,0.195]
[1693541913521,3.87258272,26112.0,26111.0,0.195]
[1693541913695,3.87360272,26112.0,26111.0,0.195]
[1693541913896,3.87114272,26112.0,26111.0,0.195]
[1693541914143,3.86928272,26112.0,26111.0,0.195]
[1693541914340,3.86922272,26112.0,26111.0,0.195]
[1693541914543,3.87012272,26112.0,26111.0,0.195]
[1693541914752,3.86766272,26112.0,26111.0,0.195]
[1693541914951,3.86760272,26112.0,26111.0,0.195]
[1693541915127,3.86748272,26112.0,26111.0,0.195]
[1693541915330,3.86742272,26112.0,26111.0,0.195]
[1693541915528,3.86634272,26112.0,26111.0,0.195]
[1693541915759,3.86544272,26112.0,26111.0,0.195]
[1693541916011,3.86580272,26112.0,26111.0,0.195]
[1693541916212,3.86592272,26112.0,26111.0,0.195]
[1693541916571,3.86676272,26112.0,26111.0,0.195]
[1693541916883,3.86670272,26112.0,26111.0,0.195]
[1693541917045,3.86598272,26112.0,26111.0,0.195]
[1693541917255,3.86580272,26112.0,26111.0,0.195]
[1693541917458,3.86574272,26112.0,26111.0,0.195]
[1693541917659,3.86634272,26112.0,26111.0,0.195]
[1693541917861,3.86622272,26112.0,26111.0,0.195]
[1693541918066,3.86616272,26112.0,26111.0,0.195]
[1693541918294,3.86556272,26112.0,26111.0,0.195]
[1693541918734,3.86568272,26112.0,26111.0,0.195]
[1693541918966,3.86580272,26112.0,26111.0,0.195]
[1693541919133,3.86634272,26112.0,26111.0,0.195]
[1693541919461,4.28234272,26112.0,26111.0,0.195]
[1693541919682,4.45769866,26112.0,26111.0,0.195]
[1693541919886,4.45751866,26112.0,26111.0,0.195]
[1693541920085,4.45721866,26112.0,26111.0,0.195]
[1693541920218,4.18118901,26112.0,26111.0,0.195]
[1693541920417,4.18094901,26112.0,26111.0,0.195]
[1693541920746,4.17926901,26112.0,26111.0,0.195]
[1693541921088,4.17896901,26112.0,26111.0,0.195]
[1693541921284,4.18088901,26112.0,26111.0,0.195]
[1693541921492,4.18262901,26112.0,26111.0,0.195]
[1693541921620,4.28124901,26112.0,26111.0,0.195]
[1693541921826,4.29822901,26112.0,26111.0,0.195]
[1693541922041,4.29858901,26112.0,26111.0,0.195]
[1693541922246,4.29708901,26112.0,26111.0,0.195]
[1693541922474,4.29720901,26112.0,26111.0,0.195]
[1693541922673,4.29702901,26112.0,26111.0,0.195]
[1693541922872,4.29660901,26112.0,26111.0,0.195]
[1693541923072,4.29726901,26112.0,26111.0,0.195]
[1693541923383,4.29654901,26112.0,26111.0,0.195]
[1693541923586,4.29564901,26112.0,26111.0,0.195]
[1693541923789,4.29360901,26112.0,26111.0,0.195]
[1693541924028,4.29372901,26112.0,26111.0,0.195]
[1693541924231,4.29390901,26112.0,26111.0,0.195]
[1693541924439,4.29510901,26112.0,26111.0,0.195]
[1693541924654,4.29498901,26112.0,26111.0,0.195]
[1693541924861,4.28898901,26112.0,26111.0,0.195]
[1693541925040,4.28988901,26112.0,26111.0,0.195]
[1693541925247,4.29036901,26112.0,26111.0,0.195]
[1693541925487,4.29786901,26112.0,26111.0,0.195]
[1693541925802,4.29420901,26112.0,26111.0,0.195]
[1693541926151,4.29114901,26112.0,26111.0,0.195]
[1693541926463,4.29066901,26112.0,26111.0,0.195]
[1693541926640,4.29192901,26112.0,26111.0,0.195]
[1693541926841,4.29036901,26112.0,26111.0,0.195]
[1693541927058,4.29012901,26112.0,26111.0,0.195]
[1693541927280,4.28970901,26112.0,26111.0,0.195]
[1693541927607,4.27440901,26112.0,26111.0,0.195]
[1693541927807,4.27446901,26112.0,26111.0,0.195]
[1693541927961,4.27530901,26112.0,26111.0,0.195]
[1693541928328,4.28562901,26112.0,26111.0,0.195]
[1693541928599,4.28556901,26112.0,26111.0,0.195]
[1693541928827,4.28562901,26112.0,26111.0,0.195]
[1693541929106,4.28550901,26112.0,26111.0,0.195]
[1693541929517,4.28544901,26112.0,26111.0,0.195]
[1693541929728,4.28502901,26112.0,26111.0,0.195]
[1693541930013,4.28400901,26112.0,26111.0,0.195]
[1693541930441,4.28370901,26112.0,26111.0,0.195]
[1693541930594,4.28250901,26112.0,26111.0,0.195]
[1693541930795,4.28256901,26112.0,26111.0,0.195]
[1693541931263,4.28220901,26112.0,26111.0,0.195]
[1693541931407,4.28208901,26112.0,26111.0,0.195]
[1693541931605,4.28226901,26112.0,26111.0,0.195]
[1693541932007,4.28586901,26112.0,26111.0,0.195]
[1693541932208,4.28598901,26112.0,26111.0,0.195]
[1693541932454,4.28280901,26112.0,26111.0,0.195]
[1693541932626,4.28256901,26112.0,26111.0,0.195]
[1693541932932,4.28262901,26112.0,26111.0,0.195]
[1693541933622,4.28250901,26112.0,26111.0,0.195]
[1693541933835,4.28238901,26112.0,26111.0,0.195]
[1693541934011,4.28244901,26112.0,26111.0,0.195]
[1693541934422,4.28238901,26112.0,26111.0,0.195]
[1693541934779,4.28226901,26112.0,26111.0,0.195]
[1693541934980,4.28238901,26112.0,26111.0,0.195]
[1693541935546,4.28220901,26112.0,26111.0,0.195]
[1693541935717,4.28226901,26112.0,26111.0,0.195]
[1693541936300,4.28418901,26112.0,26111.0,0.195]
[1693541936726,4.28406901,26112.0,26111.0,0.195]
[1693541936924,4.28412901,26112.0,26111.0,0.195]
[1693541937248,4.28406901,26112.0,26111.0,0.195]
[1693541937491,4.29438901,26112.0,26111.0,0.195]
[1693541937716,4.28766901,26112.0,26111.0,0.195]
[1693541937900,4.59693585,26112.0,26111.0,0.195]
[1693541938128,4.59855585,26112.0,26111.0,0.195]
[1693541938304,4.59783585,26112.0,26111.0,0.195]
[1693541938507,4.59801585,26112.0,26111.0,0.195]
[1693541938701,4.60581585,26112.0,26111.0,0.195]
[1693541938930,4.60569585,26112.0,26111.0,0.195]
[1693541939132,4.73157585,26112.0,26111.0,0.195]
[1693541939334,4.63975322,26112.0,26111.0,0.195]
[1693541939466,4.96375322,26112.0,26111.0,0.195]
[1693541939814,4.98439322,26112.0,26111.0,0.195]
[1693541940012,4.92475322,26112.0,26111.0,0.193]
[1693541940226,4.94239322,26112.0,26111.0,0.193]
[1693541940373,4.91659322,26112.0,26111.0,0.19]
[1693541940574,4.87999322,26112.0,26111.0,0.19]
[1693541940774,4.91407322,26112.0,26111.0,0.19]
[1693541940976,4.91311322,26112.0,26111.0,0.19]
[1693541941187,4.91467322,26112.0,26111.0,0.19]
[1693541941392,4.95043322,26112.0,26111.0,0.19]
[1693541941592,4.94911322,26112.0,26111.0,0.19]
[1693541941793,4.95139322,26112.0,26111.0,0.19]
[1693541941993,5.16391322,26112.0,26111.0,0.19]
[1693541942197,5.18167322,26112.0,26111.0,0.19]
[1693541942400,5.17663322,26112.0,26111.0,0.19]
[1693541942602,5.17303322,26112.0,26111.0,0.19]
[1693541942804,5.17279322,26112.0,26111.0,0.19]
[1693541943005,5.17255322,26112.0,26111.0,0.19]
[1693541943213,5.15827322,26112.0,26111.0,0.19]
[1693541943411,5.15839322,26112.0,26111.0,0.19]
[1693541943617,5.15407322,26112.0,26111.0,0.19]
[1693541943812,5.15203322,26112.0,26111.0,0.19]
[1693541944018,5.15239322,26112.0,26111.0,0.19]
[1693541944212,5.15203322,26112.0,26111.0,0.19]
[1693541944414,5.14891322,26112.0,26111.0,0.19]
[1693541944789,5.12275322,26112.0,26111.0,0.19]
[1693541944994,5.12047322,26112.0,26111.0,0.19]
[1693541945173,4.79571822,26112.0,26111.0,0.19]
[1693541945391,4.63665822,26112.0,26111.0,0.19]
[1693541945567,4.63719822,26112.0,26111.0,0.19]
[1693541945782,4.64283822,26112.0,26111.0,0.19]
[1693541945977,5.03065239,26112.0,26111.0,0.19]
[1693541946183,5.03215239,26112.0,26111.0,0.19]
[1693541946384,5.03917239,26112.0,26111.0,0.19]
[1693541946712,5.03935239,26112.0,26111.0,0.19]
[1693541946919,5.04013239,26112.0,26111.0,0.19]
[1693541947140,5.16943239,26112.0,26111.0,0.19]
[1693541947281,5.17375239,26112.0,26111.0,0.19]
[1693541947490,5.17195239,26112.0,26111.0,0.19]
[1693541947692,5.17135239,26112.0,26111.0,0.19]
[1693541947887,4.93454972,26112.0,26111.0,0.19]
[1693541948087,4.93994972,26112.0,26111.0,0.19]
[1693541948331,4.92854972,26112.0,26111.0,0.19]
[1693541948567,4.92254972,26112.0,26111.0,0.19]
[1693541948893,4.92374972,26112.0,26111.0,0.19]
[1693541949125,4.92446972,26112.0,26111.0,0.19]
[1693541949331,4.92374972,26112.0,26111.0,0.19]
[1693541949535,4.91978972,26112.0,26111.0,0.19]
[1693541949772,5.2128041,26112.0,26111.0,0.19]
[1693541949977,5.0370641,26112.0,26111.0,0.19]
[1693541950190,5.0349641,26112.0,26111.0,0.19]
[1693541950395,5.1918041,26112.0,26111.0,0.19]
[1693541950597,5.1958841,26112.0,26111.0,0.19]
[1693541950780,5.1960041,26112.0,26111.0,0.19]
[1693541951007,5.1961241,26112.0,26111.0,0.19]
[1693541951217,5.1946841,26112.0,26111.0,0.19]
[1693541951421,5.1969641,26112.0,26111.0,0.19]
[1693541951626,5.1988841,26112.0,26111.0,0.19]
[1693541951848,4.88918972,26112.0,26111.0,0.19]
[1693541952050,5.18649142,26112.0,26111.0,0.19]
[1693541952271,4.88318972,26112.0,26111.0,0.19]
[1693541952472,4.88102972,26112.0,26111.0,0.19]
[1693541952673,4.88138972,26112.0,26111.0,0.19]
[1693541952896,5.19236773,26112.0,26111.0,0.19]
[1693541953102,5.19344773,26112.0,26111.0,0.19]
[1693541953305,5.18840773,26112.0,26111.0,0.19]
[1693541953512,5.18504773,26112.0,26111.0,0.19]
[1693541953710,5.18528773,26112.0,26111.0,0.19]
[1693541953820,5.18552773,26112.0,26111.0,0.19]
[1693541954021,5.18036773,26112.0,26111.0,0.19]
[1693541954228,4.62791356,26112.0,26111.0,0.19]
[1693541954426,4.63547356,26112.0,26111.0,0.19]
[1693541954625,4.81745356,26112.0,26111.0,0.19]
[1693541954991,4.51235555,26112.0,26111.0,0.19]
[1693541955190,4.51319555,26112.0,26111.0,0.19]
[1693541955519,4.90094972,26112.0,26111.0,0.19]
[1693541955677,4.90238972,26112.0,26111.0,0.19]
[1693541955878,4.90382972,26112.0,26111.0,0.19]
[1693541956131,4.90346972,26112.0,26111.0,0.19]
[1693541956304,4.89218972,26112.0,26111.0,0.19]
[1693541956533,4.89206972,26112.0,26111.0,0.19]
[1693541956715,4.89146972,26112.0,26111.0,0.19]
[1693541956918,4.89746972,26112.0,26111.0,0.19]
[1693541957119,4.89962972,26112.0,26111.0,0.19]
[1693541957325,5.2196855,26112.0,26111.0,0.19]
[1693541957542,5.2183655,26112.0,26111.0,0.19]
[1693541957684,5.2325255,26112.0,26111.0,0.19]
[1693541958073,5.2387655,26112.0,26111.0,0.19]
[1693541958281,5.2404455,26112.0,26111.0,0.19]
[1693541958483,5.2366055,26112.0,26111.0,0.19]
[1693541958669,5.2334855,26112.0,26111.0,0.19]
[1693541958872,5.2358855,26112.0,26111.0,0.19]
[1693541959075,5.2360055,26112.0,26111.0,0.19]
[1693541959225,5.2358855,26112.0,26111.0,0.19]
[1693541959431,5.04314972,26112.0,26111.0,0.19]
[1693541959614,5.03834972,26112.0,26111.0,0.19]
[1693541959812,5.03954972,26112.0,26111.0,0.19]
[1693541960016,5.03942972,26112.0,26111.0,0.19]
[1693541960221,5.02202972,26112.0,26111.0,0.19]
[1693541960724,5.02034972,26112.0,26111.0,0.19]
[1693541960923,5.01566972,26112.0,26111.0,0.19]
[1693541961290,4.90298972,26112.0,26111.0,0.19]
[1693541961423,4.90106972,26112.0,26111.0,0.19]
[1693541961627,4.90238972,26112.0,26111.0,0.19]
[1693541962095,4.90226972,26112.0,26111.0,0.19]
[1693541962322,4.90166972,26112.0,26111.0,0.19]
[1693541962503,4.90190972,26112.0,26111.0,0.19]
[1693541962696,4.90130972,26112.0,26111.0,0.19]
[1693541962935,4.90142972,26112.0,26111.0,0.19]
[1693541963108,4.90154972,26112.0,26111.0,0.19]
[1693541963315,4.90166972,26112.0,26111.0,0.19]
[1693541963518,4.90142972,26112.0,26111.0,0.19]
[1693541963672,4.90166972,26112.0,26111.0,0.19]
[1693541963898,4.90022972,26112.0,26111.0,0.19]
[1693541964125,4.90058972,26112.0,26111.0,0.19]
[1693541964328,4.90034972,26112.0,26111.0,0.19]
[1693541964503,4.89734972,26112.0,26111.0,0.19]
[1693541964707,5.09042972,26112.0,26111.0,0.19]
[1693541964886,5.13339393,26112.0,26111.0,0.19]
[1693541965084,5.13435393,26112.0,26111.0,0.19]
[1693541965291,5.13447393,26112.0,26111.0,0.19]
[1693541965486,5.13411393,26112.0,26111.0,0.19]
[1693541965693,5.13459393,26112.0,26111.0,0.19]
[1693541965940,5.13195393,26112.0,26111.0,0.19]
[1693541966138,5.13075393,26112.0,26111.0,0.19]
[1693541966336,5.13051393,26112.0,26111.0,0.19]
[1693541966513,5.12679393,26112.0,26111.0,0.19]
[1693541966735,5.12043393,26112.0,26111.0,0.19]
[1693541967038,5.10699393,26112.0,26111.0,0.19]
[1693541967239,5.10687393,26112.0,26111.0,0.19]
[1693541967437,5.13827393,26112.0,26111.0,0.19]
[1693541967645,5.12735393,26112.0,26111.0,0.19]
[1693541967846,5.13035393,26112.0,26111.0,0.19]
[1693541968074,5.12951393,26112.0,26111.0,0.19]
[1693541968378,5.12963393,26112.0,26111.0,0.19]
[1693541968554,5.13047393,26112.0,26111.0,0.19]
[1693541968761,5.13407393,26112.0,26111.0,0.19]
[1693541968963,5.13383393,26112.0,26111.0,0.19]
[1693541969141,5.13335393,26112.0,26111.0,0.19]
[1693541969705,5.13527393,26112.0,26111.0,0.19]
[1693541970081,5.13503393,26112.0,26111.0,0.19]
[1693541970216,5.13443393,26112.0,26111.0,0.19]
[1693541970419,5.13419393,26112.0,26111.0,0.19]
[1693541970681,5.14895393,26112.0,26111.0,0.19]
[1693541970907,5.13575393,26112.0,26111.0,0.19]
[1693541971037,5.13551393,26112.0,26111.0,0.19]
[1693541971239,5.39741393,26112.0,26111.0,0.19]
[1693541971449,5.38265393,26112.0,26111.0,0.19]
[1693541971655,5.37491393,26112.0,26111.0,0.19]
[1693541971853,5.37401393,26112.0,26111.0,0.19]
[1693541972084,5.35907393,26112.0,26111.0,0.19]
[1693541972312,5.35655393,26112.0,26111.0,0.19]
[1693541972500,5.35871393,26112.0,26111.0,0.19]
[1693541972707,5.35745393,26112.0,26111.0,0.19]
[1693541972860,5.36411393,26112.0,26111.0,0.19]
[1693541973063,5.35457393,26112.0,26111.0,0.19]
[1693541973287,5.35151393,26112.0,26111.0,0.19]
[1693541973499,5.35115393,26112.0,26111.0,0.19]
[1693541973638,5.35061393,26112.0,26111.0,0.19]
[1693541973842,5.35385393,26112.0,26111.0,0.19]
[1693541974042,5.35673393,26112.0,26111.0,0.19]
[1693541974295,5.35745393,26112.0,26111.0,0.19]
[1693541974466,5.35133393,26112.0,26111.0,0.19]
[1693541974662,5.35115393,26112.0,26111.0,0.19]
[1693541974869,5.35169393,26112.0,26111.0,0.19]
[1693541975087,5.35259393,26112.0,26111.0,0.19]
[1693541975292,5.35817393,26112.0,26111.0,0.19]
[1693541975484,5.35781393,26112.0,26111.0,0.19]
[1693541975704,5.35799393,26112.0,26111.0,0.19]
[1693541976104,0.5228,26107.0,26106.0,0.04992908]
[1693541976306,4.86435092,26107.0,26106.0,0.04992908]
[1693541976533,0.5028,26106.0,26105.0,0.003829]
[1693541976756,3.14727298,26106.0,26105.0,0.003829]
[1693541976907,3.26877298,26106.0,26105.0,0.003829]
[1693541977107,3.26643298,26106.0,26105.0,0.003829]
[1693541977307,4.35370715,26106.0,26105.0,0.003829]
[1693541977552,4.35346715,26106.0,26105.0,0.003829]
[1693541977682,4.35262715,26106.0,26105.0,0.003829]
[1693541977891,4.38442715,26106.0,26105.0,0.003829]
[1693541978132,4.42018715,26106.0,26105.0,0.003829]
[1693541978336,4.57515315,26106.0,26105.0,0.003829]
[1693541978536,4.57389315,26106.0,26105.0,0.003829]
[1693541978788,4.57155315,26106.0,26105.0,0.003829]
[1693541978993,4.57143315,26106.0,26105.0,0.003829]
[1693541979194,4.53501315,26106.0,26105.0,0.003829]
[1693541979446,4.52181315,26106.0,26105.0,0.003829]
[1693541979646,4.52097315,26106.0,26105.0,0.003829]
[1693541979846,4.52205315,26106.0,26105.0,0.003829]
[1693541980051,4.55799315,26106.0,26105.0,0.003829]
[1693541980255,4.55847315,26106.0,26105.0,0.003829]
[1693541980518,4.55721315,26106.0,26105.0,0.003829]
[1693541980718,4.55823315,26106.0,26105.0,0.003829]
[1693541980899,4.55883315,26106.0,26105.0,0.003829]
[1693541981243,4.55889315,26106.0,26105.0,0.003829]
[1693541981441,4.55919315,26106.0,26105.0,0.003829]
[1693541981646,4.55925315,26106.0,26105.0,0.003829]
[1693541981859,4.56153315,26106.0,26105.0,0.003829]
[1693541982059,4.56177315,26106.0,26105.0,0.003829]
[1693541982197,4.56183315,26106.0,26105.0,0.003829]
[1693541982402,4.56117315,26106.0,26105.0,0.003829]
[1693541982601,4.56111315,26106.0,26105.0,0.003829]
[1693541982806,4.56105315,26106.0,26105.0,0.003829]
[1693541983029,4.56207315,26106.0,26105.0,0.003829]
[1693541983289,4.56165315,26106.0,26105.0,0.003829]
[1693541983496,4.56387315,26106.0,26105.0,0.003829]
[1693541983675,4.56183315,26106.0,26105.0,0.003829]
[1693541983847,4.56171315,26106.0,26105.0,0.003829]
[1693541984055,4.75964454,26106.0,26105.0,0.003829]
[1693541984250,4.48418717,26106.0,26105.0,0.003829]
[1693541984451,4.48412717,26106.0,26105.0,0.003829]
[1693541984661,4.55468322,26106.0,26105.0,0.003829]
[1693541984859,4.7955591,26106.0,26105.0,0.003829]
[1693541985035,4.7960391,26106.0,26105.0,0.003829]
[1693541985238,4.55385726,26106.0,26105.0,0.003829]
[1693541985442,4.55379726,26106.0,26105.0,0.193829]
[1693541985638,4.55397726,26106.0,26105.0,0.193829]
[1693541985870,4.83008529,26106.0,26105.0,0.193829]
[1693541986023,4.82984529,26106.0,26105.0,0.193829]
[1693541986389,4.55499726,26106.0,26105.0,0.193829]
[1693541986613,4.55583726,26106.0,26105.0,0.193829]
[1693541986790,4.55589726,26106.0,26105.0,0.003829]
[1693541986998,4.55571726,26106.0,26105.0,0.003829]
[1693541987297,4.57857726,26106.0,26105.0,0.003829]
[1693541987475,4.57833726,26106.0,26105.0,0.003829]
[1693541987815,4.57809726,26106.0,26105.0,0.003829]
[1693541988223,4.58535726,26106.0,26105.0,0.003829]
[1693541988361,4.57809726,26106.0,26105.0,0.003829]
[1693541988564,4.57347726,26106.0,26105.0,0.003829]
[1693541988794,4.57353726,26106.0,26105.0,0.003829]
[1693541988986,4.57359726,26106.0,26105.0,0.003829]
[1693541989169,4.57365726,26106.0,26105.0,0.003829]
[1693541989407,4.57371726,26106.0,26105.0,0.003829]
[1693541989805,4.57707726,26106.0,26105.0,0.003829]
[1693541990157,4.58265726,26106.0,26105.0,0.003829]
[1693541990339,4.58391726,26106.0,26105.0,0.003829]
[1693541990517,4.58373726,26106.0,26105.0,0.003829]
[1693541990693,4.58319726,26106.0,26105.0,0.003829]
[1693541990895,4.57947726,26106.0,26105.0,0.003829]
[1693541991319,4.57941726,26106.0,26105.0,0.003829]
[1693541991515,4.58139726,26106.0,26105.0,0.003829]
[1693541991715,4.58133726,26106.0,26105.0,0.003829]
[1693541991927,4.58277726,26106.0,26105.0,0.003829]
[1693541992123,4.58805726,26106.0,26105.0,0.003829]
[1693541992443,4.58811726,26106.0,26105.0,0.003829]
[1693541992648,4.58847726,26106.0,26105.0,0.003829]
[1693541992847,4.58703726,26106.0,26105.0,0.003829]
[1693541992987,4.58643726,26106.0,26105.0,0.003829]
[1693541993189,4.58559726,26106.0,26105.0,0.003829]
[1693541993432,4.58583726,26106.0,26105.0,0.003829]
[1693541993632,4.58577726,26106.0,26105.0,0.003829]
[1693541993842,4.58265726,26106.0,26105.0,0.003829]
[1693541994075,4.58259726,26106.0,26105.0,0.003829]
[1693541994271,4.58331726,26106.0,26105.0,0.003829]
[1693541994502,4.58619726,26106.0,26105.0,0.003829]
[1693541994699,4.58229726,26106.0,26105.0,0.003829]
[1693541994852,4.54599726,26106.0,26105.0,0.003829]
[1693541995053,4.63153726,26106.0,26105.0,0.003829]
[1693541995252,4.83601726,26106.0,26105.0,0.003829]
[1693541995459,5.14656875,26106.0,26105.0,0.003829]
[1693541995658,5.14164875,26106.0,26105.0,0.003829]
[1693541995857,5.17968875,26106.0,26105.0,0.003829]
[1693541996058,5.18484875,26106.0,26105.0,0.003829]
[1693541996258,5.11404875,26106.0,26105.0,0.003829]
[1693541996463,5.11320875,26106.0,26105.0,0.003829]
[1693541996662,5.18568875,26106.0,26105.0,0.003829]
[1693541996885,5.15208875,26106.0,26105.0,0.003829]
[1693541997088,5.18820875,26106.0,26105.0,0.003829]
[1693541997289,5.21881296,26106.0,26105.0,0.003829]
[1693541997462,5.22889296,26106.0,26105.0,0.003829]
[1693541997670,5.24425296,26106.0,26105.0,0.003829]
[1693541997925,5.20933296,26106.0,26105.0,0.003829]
[1693541998126,5.24557296,26106.0,26105.0,0.003829]
[1693541998356,5.23237296,26106.0,26105.0,0.003829]
[1693541998658,5.14885296,26106.0,26105.0,0.003829]
[1693541998864,5.18989296,26106.0,26105.0,0.003829]
[1693541999095,5.22781296,26106.0,26105.0,0.003829]
[1693541999296,5.22961296,26106.0,26105.0,0.003829]
[1693541999452,5.22997296,26106.0,26105.0,0.003829]
[1693541999650,5.23033296,26106.0,26105.0,0.003829]
[1693541999856,5.23009296,26106.0,26105.0,0.003829]
[1693542000170,5.22757296,26106.0,26105.0,0.003829]
[1693542000380,5.22325296,26106.0,26105.0,0.003829]
[1693542000577,5.22109296,26106.0,26105.0,0.003829]
[1693542000778,5.20069296,26106.0,26105.0,0.003829]
[1693542000955,5.20057296,26106.0,26105.0,0.003829]